Cogmind - Beta 16 @@@ ROGUE MODE // 2025.11.11 @ 13:45:04 Player: welikiq Result: Destroyed by Y-64 Sentinel with KE Penetrator Performance ------------- Evolutions (6) 3000 Regions Visited (11) 2200 Robots Destroyed (166) 830 Value Destroyed (5933) 5933 Prototype IDs (17) 340 Alien Tech Used (0) 0 Bonus (1019) 1019 TOTAL SCORE: 13322 Bonus ------- High Alert Combat Kills 719 Aligned with FarCom 300 Cogmind --------- Core Integrity 0/1150 Matter 270/300 Energy 63/100 System Corruption 26% Temperature Cool (0) Movement Core (50) Location -4/Factory Parts ------- > --- POWER (3) -------- (None) > --- PROPULSION (5) --- (None) > --- UTILITY (8) ------ Cloaking Device > --- WEAPON (3) ------- (None) > --- INVENTORY (5) ---- Improved Gyrokinetic Inverter Small Matter Pod (28) Advanced Beam Rifle Peak State ------------ > --- POWER ------------ Angular Momentum Engine Micro Fission Core Micro Fission Core > --- PROPULSION ------- Armored Treads Armored Treads Armored Medium Treads Armored Medium Treads Armored Medium Treads > --- UTILITY ---------- Improved Heat Sink Advanced Heat Sink Large Storage Unit Hardened Medium Armor Plating Improved Medium Armor Plating Improved Medium Armor Plating Force Field Hacking Suite > --- WEAPON ----------- Heavy Proton Cannon Heavy Proton Cannon Heavy Proton Cannon > --- INVENTORY -------- Improved Ion Engine Angular Momentum Engine Micro Fission Core Armored Treads Armored Treads Armored Treads Armored Treads Armored Treads Improved Heat Sink Cloaking Device Advanced Beam Rifle Long-range Proton Cannon Heavy Phase Cannon Long-range Missile Launcher Axe [Rating: 96] Favorites ----------- Power Heavy Deuterium Engine Engine Heavy Deuterium Engine Power Core Micro Fission Core Propulsion Armored Treads Treads Armored Treads Leg Improved Carbon-fiber Leg Hover Unit Improved Gyrokinetic Inverter Utility Large Storage Unit Device Improved Heat Sink Storage Large Storage Unit Processor Improved Terrain Scan Processor Hackware Hacking Suite Protection Improved Medium Armor Plating Weapon Axe Energy Gun Precision Beam Rifle Energy Cannon Heavy Ion Cannon Ballistic Gun Assault Rifle Ballistic Cannon Light Cannon Launcher Heavy Missile Launcher Slashing Weapon Axe Special Melee Weapon Datajack Build | -11 -10 -10 -10 -9 -8 -7 -6 -5 -4 -4 -4 ------- Run | Yrd Mat Min Exi Min Mat Fac Fac Fac Fac Was Fac Slots Evolved 12 | . . . . . 4 2 2 2 2 . . Power 2 | . . . . . . . 1 . 1 . . Propulsion 3 | . . . . . 2 . . 1 . . . Utility 6 | . . . . . 2 2 . 1 1 . . Weapon 1 | . . . . . . . 1 . . . . Parts Attached 123 | 7 6 4 . 2 38 25 10 15 15 . 1 Power 19 | 1 1 . . 1 6 1 2 3 4 . . Engine 12 | 1 1 . . 1 4 1 1 2 1 . . Core 7 | . . . . . 2 . 1 1 3 . . Reactor . | . . . . . . . . . . . . Propulsion 34 | 2 2 2 . . 12 8 . 1 6 . 1 Treads 19 | 2 2 2 . . 2 4 . 1 6 . . Leg 14 | . . . . . 10 4 . . . . . Wheel . | . . . . . . . . . . . . Hover 1 | . . . . . . . . . . . 1 Flight . | . . . . . . . . . . . . Utility 41 | 1 1 1 . . 11 12 8 4 3 . . Device 14 | . . 1 . . 4 3 2 2 2 . . Storage 4 | 1 1 . . . 1 . . 1 . . . Processor 5 | . . . . . 1 3 1 . . . . Hackware 5 | . . . . . 1 1 2 1 . . . Protection 13 | . . . . . 4 5 3 . 1 . . Artifact . | . . . . . . . . . . . . Weapon 29 | 3 2 1 . 1 9 4 . 7 2 . . Energy Gun 7 | . . . . . 6 1 . . . . . Energy Cannon 10 | . . . . . . 3 . 6 1 . . Ballistic Gun 3 | 3 . . . . . . . . . . . Ballistic Cannon 3 | . 2 . . 1 . . . . . . . Launcher 3 | . . 1 . . 1 . . 1 . . . Special Weapon . | . . . . . . . . . . . . Impact Weapon . | . . . . . . . . . . . . Slashing Weapon 1 | . . . . . 1 . . . . . . Piercing Weapon . | . . . . . . . . . . . . Special Melee Weapon 2 | . . . . . 1 . . . 1 . . Unidentified Prototypes 8 | . . 1 . . 4 2 . 1 . . . Parts Lost 42 | . . 1 . . 8 1 3 1 28 . . Power 6 | . . 1 . . . . . . 5 . . Propulsion 12 | . . . . . 4 . . . 8 . . Utility 15 | . . . . . 2 1 3 1 8 . . Weapon 9 | . . . . . 2 . . . 7 . . Highest Loss Streak 27 | . . 1 . . 5 1 2 1 27 . . To Critical Strikes . | . . . . . . . . . . . . Average Backups 12 | 1 5 10 12 12 14 14 14 14 12 3 3 Power 1 | . . . . . . 1 1 1 1 . . Propulsion 3 | . . 2 3 3 4 5 4 3 4 . . Utility 3 | . 1 2 3 3 3 3 4 3 2 2 1 Weapon 4 | . 2 4 5 5 4 4 4 5 4 1 1 Tool/Special . | . . . . . . . . . . . . Unused Backups 24 | . 1 . . . 9 10 1 1 1 . 1 Power . | . . . . . . . . . . . . Propulsion 8 | . . . . . . 8 . . . . . Utility 8 | . . . . . 3 2 1 1 . . 1 Weapon 7 | . 1 . . . 5 . . . 1 . . Tool/Special 1 | . . . . . 1 . . . . . . Average Slot Usage (%) 93 | . 82 93 85 97 96 99 97 99 89 . 3 Engine 7 | . 11 9 . 11 5 7 9 7 8 . . Core 1 | . . . . . 3 . . 2 5 . . Treads 19 | . 28 28 28 28 10 9 26 29 23 . . Leg 9 | . . . . . 24 20 . . . . . Device 11 | . . 12 14 14 11 13 12 16 14 . 3 Storage 8 | . 14 14 14 14 9 7 6 5 4 . . Processor 2 | . . . . . . 4 5 5 3 . . Hackware 4 | . . . . . 3 6 11 5 4 . . Protection 6 | . . . . . 10 11 1 5 8 . . Energy Gun 3 | . . . . . 10 . 6 2 . . . Energy Cannon 5 | . . . . . . 9 9 9 9 . . Ballistic Gun 1 | . 19 . . . . . . . . . . Ballistic Cannon 4 | . 8 27 28 18 2 . . . . . . Slashing Weapon 2 | . . . . . 2 3 3 4 3 . . Peak Build Rating 96 | 6 7 17 15 21 43 53 58 77 96 1 8 Average Rating 41 | 4 5 14 15 17 34 48 51 69 79 1 5 On Entrance 23 | . 6 6 15 15 21 41 47 58 72 1 1 Avg Prop Armor Cover (%) . | . . . . . . . . . . . . Naked Turns 120 | . . . . . . . . . 45 66 9 Heaviest Build 110 | 14 31 33 27 35 49 67 70 89 110 . 1 Greatest Support 121 | 40 40 40 40 40 80 80 80 100 121 3 12 Greatest Overweight (x) 3 | . . . . . 3 2 . . 1 . . Average Overweight (x) . | . . . . . . . . . . . . Largest Inventory Capacity 15 | 8 15 15 15 15 15 15 15 15 15 5 5 Average Capacity 14 | 6 14 15 15 15 15 15 15 15 14 5 5 Most Carried 15 | 2 8 12 12 14 15 15 15 15 15 3 4 Average Carried 12 | 1 5 10 12 12 14 14 14 14 12 3 3 Final Capacity 15 | 8 15 15 15 15 15 15 15 15 5 5 5 Final Carried 15 | 2 7 12 12 14 15 15 15 14 3 3 3 Class Distribution -------------------- 78% | Mutant 4% | Hacker-Assassin 4% | Hacker-Skirmisher 4% | Tank 3% | Scavenger-Mutant 3% | Assassin Dominant Class ---------------- Mutant | -10/Materials Mutant | -10/Mines Mutant | -10/Exiles Skirmisher | -9/Mines Mutant | -8/Materials Mutant | -7/Factory Hacker-Assassin | -6/Factory Mutant | -5/Factory Mutant | -4/Factory Mutant | -4/Waste Mutant | -4/Factory Resources | -11 -10 -10 -10 -9 -8 -7 -6 -5 -4 -4 -4 ----------- Run | Yrd Mat Min Exi Min Mat Fac Fac Fac Fac Was Fac Matter Collected 4087 | 288 436 407 . 17 1326 592 299 241 481 . . Remotely . | . . . . . . . . . . . . Salvage Created 5694 | 58 499 319 . 11 2019 812 372 358 1246 . . Parts 286 | 1 26 27 . 3 91 49 21 22 46 . . Haulers Intercepted 9 | . 2 . . . 4 2 . 1 . . . Recyclers Shooed 2 | . . . . . . . . . 2 . . Parts Field Recycled . | . . . . . . . . . . . . Retrieved Matter . | . . . . . . . . . . . . Parts Self-Destructed . | . . . . . . . . . . . . Prevented . | . . . . . . . . . . . . Parts Restored . | . . . . . . . . . . . . Kills | -11 -10 -10 -10 -9 -8 -7 -6 -5 -4 -4 -4 ------- Run | Yrd Mat Min Exi Min Mat Fac Fac Fac Fac Was Fac Combat Hostiles Destroyed 118 | . 12 8 . . 48 14 6 5 25 . . Melee 4 | . . . . . 3 . . 1 . . . Guns 30 | . 10 . . . 19 . 1 . . . . Cannons 32 | . 2 5 . . 2 11 5 1 6 . . AOE 47 | . . 3 . . 23 3 . 3 15 . . Classes Destroyed 19 | 1 5 4 . . 4 2 . . 3 . . Worker 7 | . . 1 . . 2 . . . 4 . . Builder 10 | . . 2 . . 2 2 . 1 3 . . Tunneler 4 | . . 2 . 1 . . . . 1 . . Hauler 9 | . 2 . . . 4 2 . 1 . . . Recycler 7 | 1 1 1 . . . 2 . 1 1 . . Mechanic 1 | . . . . . . . . . 1 . . Operator 2 | . . . . . 1 . 1 . . . . Watcher 8 | . 1 . . . 4 . 1 . 2 . . Swarmer 25 | . 5 3 . . 6 3 1 3 4 . . Grunt 50 | . 5 3 . . 29 5 3 . 5 . . Brawler 3 | . . . . . 3 . . . . . . Duelist 2 | . . . . . 2 . . . . . . Protector 1 | . . . . . . . . . 1 . . Sentry 13 | . . 2 . . 7 1 2 . 1 . . Specialist 2 | . . . . . . . . . 2 . . Hunter 8 | . . . . . . 1 . . 7 . . Programmer 11 | . . . . . . 4 . 2 5 . . Heavy 1 | . . . . . 1 . . . . . . Subdweller 2 | . 2 . . . . . . . . . . Best Kill Streak 18 | 1 3 3 . 1 11 5 2 4 18 . . Combat Bots Only 10 | . 3 3 . . 10 4 2 3 10 . . Max Kills in Single Turn 4 | 1 1 3 . 1 3 2 1 2 4 . . Gunslinging 1 | . . . . . 1 . . . . . . Exploded 3 | . . 3 . . 3 2 . 2 3 . . Melee 1 | . . . . . 1 . . 1 . . . Uniques/NPCs Destroyed . | . . . . . . . . . . . . Combat | -11 -10 -10 -10 -9 -8 -7 -6 -5 -4 -4 -4 -------- Run | Yrd Mat Min Exi Min Mat Fac Fac Fac Fac Was Fac Hostile Shots Fired 936 | . 40 34 . . 171 93 51 43 498 2 4 Missed 305 | . 15 9 . . 58 22 21 12 167 . 1 Hits 631 | . 25 25 . . 113 71 30 31 331 2 3 Melee 2 | . . . . . . . . . . 2 . Projectile 629 | . 25 25 . . 113 71 30 31 331 . 3 AOE 3 | . . . . . . . . . 3 . . Critical Strikes 29 | . 1 2 . . 7 1 . 2 15 . 1 Part Disruptions 1 | . . . . . . . . . 1 . . Damage Taken 10890 | . 283 361 . 24 2007 1133 454 513 5973 75 67 Core 1821 | . 44 87 . 12 243 158 98 28 1009 75 67 Absorbed by Shields 826 | . . . . . 31 257 171 94 273 . . Regen/Repaired (Parts) 76 | . . . . . 55 21 . . . . . Core Remaining (%) 76 | 100 . . . 42 55 77 88 97 . . . Volleys Fired 309 | 3 44 30 . 3 109 46 15 14 45 . . Largest 3 | 2 2 2 . 2 2 2 3 3 3 . . Hottest 261 | 40 60 63 . 60 122 140 201 261 252 . . Shots Fired 591 | 6 88 61 . 6 194 85 43 29 79 . . Gun 220 | 6 72 . . . 122 3 16 1 . . . Cannon 301 | . 16 56 . 6 31 78 27 24 63 . . Launcher 70 | . . 5 . . 41 4 . 4 16 . . Special . | . . . . . . . . . . . . Kinetic 187 | 6 88 56 . 6 31 . . . . . . Thermal 255 | . . . . . 122 79 43 6 5 . . Explosive 70 | . . 5 . . 41 4 . 4 16 . . Electromagnetic 79 | . . . . . . 2 . 19 58 . . Robot Hit Streak 29 | 1 12 13 . 3 29 8 12 7 14 . . Robot Miss Streak 9 | 2 4 3 . 2 2 9 2 1 2 . . Penetration Max . | . . . . . . . . . . . . Secondary Targets 2 | . . . . . 2 . . . . . . Max Gunslinging Chain 1 | . . . . . 1 . . . . . . Shots Hit Robots 371 | 3 55 37 . 4 116 47 25 25 59 . . Core Hits 293 | 2 24 17 . 1 108 26 14 14 87 . . Critical Kills 1 | . 1 . . . . . . . . . . Critical Parts Destroyed . | . . . . . . . . . . . . Critical Strikes 18 | . 1 3 . . 11 1 . 1 1 . . Burn 9 | . . . . . 8 1 . . . . . Destroy 1 | . 1 . . . . . . . . . . Blast 5 | . . 3 . . 2 . . . . . . Corrupt 1 | . . . . . . . . . 1 . . Sever 2 | . . . . . 1 . . 1 . . . Melee Attacks 87 | . . . . . 18 21 12 26 10 . . Impact . | . . . . . . . . . . . . Slashing 86 | . . . . . 17 21 12 26 10 . . Piercing . | . . . . . . . . . . . . Sneak Attacks 7 | . . . . . 2 4 . 1 . . . Combat Hostiles . | . . . . . . . . . . . . Follow-up Attacks . | . . . . . . . . . . . . Damage Inflicted 16783 | 33 751 874 . 67 5463 2019 668 1108 5800 . . Guns 2405 | 33 573 . . . 1601 36 162 . . . . Cannons 4803 | . 159 661 . 67 463 1119 501 342 1491 . . Explosions 8535 | . . 210 . . 3178 539 . 450 4158 . . Melee 1008 | . . . . . 216 325 . 316 151 . . Ramming 32 | . 19 3 . . 5 . 5 . . . . Kinetic 1956 | 33 732 661 . 67 463 . . . . . . Thermal 3806 | . . . . . 1601 1155 663 104 283 . . Explosive 8291 | . . 210 . . 3030 539 . 450 4062 . . Electromagnetic 1690 | . . . . . 148 . . 238 1304 . . Impact . | . . . . . . . . . . . . Slashing 1008 | . . . . . 216 325 . 316 151 . . Piercing . | . . . . . . . . . . . . Highest Corruption 26 | . 6 6 6 6 . 9 8 4 17 26 26 Average Corruption 7 | . 5 6 6 6 . 6 8 3 8 23 26 Corruption Purged . | . . . . . . . . . . . . Corruption Blocked . | . . . . . . . . . . . . Effects 141 | . 21 23 8 4 . 49 6 6 12 7 5 Message Errors 32 | . 5 5 1 . . 15 1 2 2 1 . Matter Fused 29 | . 5 7 1 1 . 9 1 1 2 2 . Heat Flow Errors 22 | . 3 4 2 1 . 8 1 . 1 . 2 Energy Discharges 16 | . 2 1 2 . . 7 . 2 1 . 1 Parts Rejected 2 | . 1 . . . . . . . 1 . . Parts Fused 3 | . . 2 . . . . . . 1 . . Data Loss (minor) 15 | . 4 2 1 1 . 4 1 . 1 . 1 Data Loss (major) 4 | . . . . 1 . 3 . . . . . Misfires 5 | . . 1 . . . 2 1 1 . . . Alerts 4 | . 1 1 1 . . . 1 . . . . Misdirections 7 | . . . . . . . . . 2 4 1 Weapon Failures 2 | . . . . . . 1 . . 1 . . Overload Shots . | . . . . . . . . . . . . Overflow Damage 422 | . 15 37 . 1 28 160 . 39 142 . . Projectiles 91 | . 15 10 . 1 9 43 . . 13 . . Explosions 164 | . . 27 . . 19 37 . . 81 . . Melee 167 | . . . . . . 80 . 39 48 . . Knockbacks 12 | . 2 4 . 1 5 . . . . . . Impact . | . . . . . . . . . . . . Kinetic 12 | . 2 4 . 1 5 . . . . . . Secondary . | . . . . . . . . . . . . Self-Inflicted Damage 271 | . . 26 . . 130 3 . . 112 . . Shots 12 | . . 2 . . 5 1 . . 4 . . Rammed 8 | . 4 1 . . 1 1 1 . . . . Targets Rammed 8 | . 4 1 . . 1 1 1 . . . . Kicked . | . . . . . . . . . . . . Crushed . | . . . . . . . . . . . . Highest Temperature 437 | . 158 221 207 118 177 322 250 276 437 . 243 Average Temperature 70 | . 53 63 92 61 35 82 86 83 115 . 115 Received Heat Transfer 1930 | . 111 147 . . 958 108 60 . 537 . 9 Effects 11 | . . . . . . 2 . 2 7 . . Shutdowns 2 | . . . . . . . . . 2 . . Energy Bleed 2 | . . . . . . 2 . . . . . Interference 3 | . . . . . . . . 2 1 . . Damage (major) 4 | . . . . . . . . . 4 . . Siege Activations . | . . . . . . . . . . . . Martial Activations . | . . . . . . . . . . . . Shielding Activations . | . . . . . . . . . . . . Robots Disrupted . | . . . . . . . . . . . . Combat Hostiles . | . . . . . . . . . . . . Robots Corrupted 4 | . . . . . . . . . 4 . . Combat Hostiles 4 | . . . . . . . . . 4 . . Parts Fried 9 | . . . . . . . . 2 7 . . Impact Corruptions . | . . . . . . . . . . . . Robots Melted 1 | . . . . . 1 . . . . . . Combat Hostiles 1 | . . . . . 1 . . . . . . Parts Melted 13 | . . . . . 9 4 . . . . . Heat Transferred 6895 | . . . . . 3922 1628 999 111 235 . . Parts Sabotaged . | . . . . . . . . . . . . Parts Stolen . | . . . . . . . . . . . . Parts Stripped . | . . . . . . . . . . . . Power Chain Reactions 1 | . . . . . . . . . 1 . . Alert | -11 -10 -10 -10 -9 -8 -7 -6 -5 -4 -4 -4 ------- Run | Yrd Mat Min Exi Min Mat Fac Fac Fac Fac Was Fac Maximum Alert Level 4 | . . . . . 4 2 . . 2 . . Low Security (%) 67 | 100 100 100 . 100 23 44 100 100 63 100 100 Level 1 15 | . . . . . 14 45 . . 17 . . Level 2 6 | . . . . . 12 10 . . 18 . . Level 3 6 | . . . . . 32 . . . . . . Level 4 3 | . . . . . 16 . . . . . . Level 5 . | . . . . . . . . . . . . High Security . | . . . . . . . . . . . . Max Security . | . . . . . . . . . . . . Peak Influence 1162 | 5 75 116 . 5 1162 513 183 102 555 148 82 Initial 513 | . . 1 . . . 513 183 26 8 148 82 Average 214 | . 24 30 . . 610 265 50 16 144 135 71 Influence Increases 4169 | 5 339 268 . 5 1695 532 232 233 860 . . Destroy 0b10 Robot/C 2300 | . 200 160 . . 960 280 120 100 480 . . Destroy 0b10 Robot/NC 245 | 5 20 30 . 5 65 30 10 15 65 . . Destroy Leader 524 | . 56 20 . . 226 94 32 22 74 . . Successful Hack 145 | . 18 . . . 55 24 8 30 10 . . Disable Machine 210 | . 15 15 . . 120 15 15 . 30 . . Destroy Structure 550 | . . 43 . . 224 44 17 66 156 . . Lose Combat Pursuer 195 | . 30 . . . 45 45 30 . 45 . . Influence Decreases 4117 | 5 335 271 1 5 566 1286 552 270 453 307 66 Entered New Map 1164 | . . 3 1 . . 616 192 29 10 277 36 Time Decay 2571 | 5 335 258 . 5 486 660 358 241 163 30 30 Lost Part 382 | . . 10 . . 80 10 2 . 280 . . Squads Dispatched 36 | . 2 . . . 10 12 3 4 4 . 1 Investigation 3 | . 1 . . . 1 1 . . . . . Extermination 8 | . . . . . . 4 1 1 2 . . Reinforcement 19 | . 1 . . . 4 6 2 3 2 . 1 Assault 4 | . . . . . 4 . . . . . . Garrison 2 | . . . . . 1 1 . . . . . Intercept . | . . . . . . . . . . . . Searches Triggered . | . . . . . . . . . . . . Construction Impeded 5 | . . . . . 1 1 . 1 2 . . Haulers Reinforced 3 | . . . . . . 2 . 1 . . . Active Scanning Responses . | . . . . . . . . . . . . Cargo Convoy Interrupts 1 | . . . . . . . . . 1 . . Stealth | -11 -10 -10 -10 -9 -8 -7 -6 -5 -4 -4 -4 --------- Run | Yrd Mat Min Exi Min Mat Fac Fac Fac Fac Was Fac Distress Signals 11 | . 2 . . . 4 2 . . 3 . . Communications Jammed . | . . . . . . . . . . . . Distress Signals . | . . . . . . . . . . . . Times Spotted 179 | . 21 8 . . 60 20 10 8 44 6 2 Peak Tracking Total 12 | . 6 3 . . 7 4 3 4 12 6 1 Tactical Retreats 11 | . 2 . . . 3 1 2 . 3 . . Traps | -11 -10 -10 -10 -9 -8 -7 -6 -5 -4 -4 -4 ------- Run | Yrd Mat Min Exi Min Mat Fac Fac Fac Fac Was Fac Traps Triggered 12 | . 3 . . . 1 5 1 . 2 . . Indirectly . | . . . . . . . . . . . . Trap Hack Attempts . | . . . . . . . . . . . . Triggered . | . . . . . . . . . . . . Disarmed . | . . . . . . . . . . . . Reprogrammed . | . . . . . . . . . . . . Reused . | . . . . . . . . . . . . Traps Extracted . | . . . . . . . . . . . . Installed . | . . . . . . . . . . . . Triggered . | . . . . . . . . . . . . Machines | -11 -10 -10 -10 -9 -8 -7 -6 -5 -4 -4 -4 ---------- Run | Yrd Mat Min Exi Min Mat Fac Fac Fac Fac Was Fac Machines Disabled 14 | . 1 1 . . 8 1 1 . 2 . . Max in Single Turn 1 | . 1 1 . . 1 1 1 . 1 . . Garrison Access 4 | . . . . . 1 2 . 1 . . . Machines Repaired . | . . . . . . . . . . . . Machines Dismantled . | . . . . . . . . . . . . Machines Sabotaged . | . . . . . . . . . . . . Overloaded Fab Kills . | . . . . . . . . . . . . Hacking | -11 -10 -10 -10 -9 -8 -7 -6 -5 -4 -4 -4 --------- Run | Yrd Mat Min Exi Min Mat Fac Fac Fac Fac Was Fac Machines Accessed 40 | . 7 . . 1 10 12 4 4 2 . . Terminals 25 | . 7 . . . 7 5 2 3 1 . . Fabricators . | . . . . . . . . . . . . Repair Stations 5 | . . . . . 1 2 1 . 1 . . Recycling Units 1 | . . . . . . 1 . . . . . Scanalyzers 4 | . . . . . 1 2 1 . . . . Garrison Access 4 | . . . . . 1 2 . 1 . . . Total Hacks 98 | . 18 . . 1 32 30 6 5 6 . . Successful 39 | . 5 . . 1 14 12 2 3 2 . . Failed 58 | . 13 . . . 17 18 4 2 4 . . Catastrophic 14 | . 6 . . . 3 1 2 2 . . . Database Lockouts 1 | . . . . . 1 . . . . . . Manual 31 | . 12 . . . 5 10 1 1 2 . . Terminals 65 | . 18 . . . 24 14 3 4 2 . . Fabricators . | . . . . . . . . . . . . Repair Stations 12 | . . . . . 3 4 1 . 4 . . Recycling Units 1 | . . . . . . 1 . . . . . Scanalyzers 11 | . . . . . 2 7 2 . . . . Garrison Access 8 | . . . . . 3 4 . 1 . . . Terminal Hacks 26 | . 5 . . 1 10 6 2 2 . . . Robot Analysis 7 | . 3 . . . . 4 . . . . . Prototype ID Bank 4 | . 1 . . . 2 . 1 . . . . Open Door 1 | . . . . 1 . . . . . . . Level Access Points 2 | . . . . . . . 1 1 . . . Branch Access Points 1 | . . . . . . . . 1 . . . Locate Traps 4 | . 1 . . . 3 . . . . . . Dispatch Records 1 | . . . . . 1 . . . . . . Maintenance Status 1 | . . . . . 1 . . . . . . Hauler Manifests 2 | . . . . . 1 1 . . . . . Registered Components 2 | . . . . . 1 1 . . . . . Zone Layout 1 | . . . . . 1 . . . . . . Fabricator Hacks . | . . . . . . . . . . . . Repair Station Hacks 6 | . . . . . 2 2 . . 2 . . Scan Component 4 | . . . . . 1 1 . . 2 . . Repair 2 | . . . . . 1 1 . . . . . Recycling Unit Hacks 1 | . . . . . . 1 . . . . . Report Inventory 1 | . . . . . . 1 . . . . . Scanalyzer 2 | . . . . . 1 1 . . . . . Retrieve Study 2 | . . . . . 1 1 . . . . . Garrison Access Hacks 4 | . . . . . 1 2 . 1 . . . Seal Access 4 | . . . . . 1 2 . 1 . . . Unauthorized Hacks . | . . . . . . . . . . . . Terminals . | . . . . . . . . . . . . Fabricators . | . . . . . . . . . . . . Repair Stations . | . . . . . . . . . . . . Recycling Units . | . . . . . . . . . . . . Scanalyzers . | . . . . . . . . . . . . Garrison Access . | . . . . . . . . . . . . Data Cores Recovered . | . . . . . . . . . . . . Used . | . . . . . . . . . . . . Hacking Detections 33 | . 7 . . . 8 10 4 2 2 . . Full Trace Events 4 | . 3 . . . . 1 . . . . . Feedback Events . | . . . . . . . . . . . . Feedback Blocked . | . . . . . . . . . . . . Robot Schematics Acquired . | . . . . . . . . . . . . Robots Built . | . . . . . . . . . . . . Authchips . | . . . . . . . . . . . . Time . | . . . . . . . . . . . . Total Robot Build Rating . | . . . . . . . . . . . . Part Schematics Acquired . | . . . . . . . . . . . . Parts Built . | . . . . . . . . . . . . Authchips . | . . . . . . . . . . . . Time . | . . . . . . . . . . . . Total Part Build Rating . | . . . . . . . . . . . . Part Studies Acquired 2 | . . . . . 1 1 . . . . . Parts Repaired 2 | . . . . . 1 1 . . . . . Time 82 | . . . . . 44 38 . . . . . Parts Recycled . | . . . . . . . . . . . . Recycled Matter . | . . . . . . . . . . . . Retrieved Matter . | . . . . . . . . . . . . Retrieved Components . | . . . . . . . . . . . . Parts Scanalyzed . | . . . . . . . . . . . . Part Schematics Acquired . | . . . . . . . . . . . . Parts Damaged . | . . . . . . . . . . . . Bothacking | -11 -10 -10 -10 -9 -8 -7 -6 -5 -4 -4 -4 ------------ Run | Yrd Mat Min Exi Min Mat Fac Fac Fac Fac Was Fac Used RIF Installer . | . . . . . . . . . . . . Robots Hacked . | . . . . . . . . . . . . Non-combat . | . . . . . . . . . . . . Combat . | . . . . . . . . . . . . Robot Hacks Applied . | . . . . . . . . . . . . Relay Couplers Released 3 | . . . . . . 3 . . . . . Programmers 3 | . . . . . . 3 . . . . . Fabnet Peak Effective % . | . . . . . . . . . . . . Robots Rewired . | . . . . . . . . . . . . Allies Hacked . | . . . . . . . . . . . . Hacks Repelled . | . . . . . . . . . . . . Allies | -11 -10 -10 -10 -9 -8 -7 -6 -5 -4 -4 -4 -------- Run | Yrd Mat Min Exi Min Mat Fac Fac Fac Fac Was Fac Total Allies . | . . . . . . . . . . . . Largest Group . | . . . . . . . . . . . . Highest-Rated Group . | . . . . . . . . . . . . Highest-Rated Ally . | . . . . . . . . . . . . Total Orders . | . . . . . . . . . . . . Ally Attacks . | . . . . . . . . . . . . Total Damage . | . . . . . . . . . . . . Kills . | . . . . . . . . . . . . Allies Corrupted . | . . . . . . . . . . . . Allies Melted . | . . . . . . . . . . . . Intel | -11 -10 -10 -10 -9 -8 -7 -6 -5 -4 -4 -4 ------- Run | Yrd Mat Min Exi Min Mat Fac Fac Fac Fac Was Fac Active Infowar (turns) 4119 | . . 817 314 114 17 163 1045 1087 534 . 28 Optics 1 | . . . . . 1 . . . . . . Sensors 1261 | . . 817 314 114 16 . . . . . . Terrain 1196 | . . . . . . 151 1045 . . . . Cloaking 1649 | . . . . . . . . 1087 534 . 28 ECM 12 | . . . . . . 12 . . . . . Robot Analysis Total 7 | . 3 . . . . 4 . . . . . Derelict Logs Recovered 2 | . . 1 . 1 . . . . . . . Drone Launches . | . . . . . . . . . . . . Drone Recoveries . | . . . . . . . . . . . . Exploration | -11 -10 -10 -10 -9 -8 -7 -6 -5 -4 -4 -4 ------------- Run | Yrd Mat Min Exi Min Mat Fac Fac Fac Fac Was Fac Turns Passed 10496 | 82 1094 933 314 114 2034 2488 1242 1156 913 66 60 Spaces Moved 5547 | 44 558 511 197 60 1014 1507 504 477 442 129 104 Core 328 | 7 . . . . . . . . 89 129 103 Treads 3282 | 37 558 511 197 60 275 310 504 477 353 . . Legs 1936 | . . . . . 739 1197 . . . . . Wheels . | . . . . . . . . . . . . Hover 1 | . . . . . . . . . . . 1 Flight . | . . . . . . . . . . . . Fastest Speed 50 | 50 160 160 160 160 90 105 170 170 50 50 50 Average Speed 141 | 142 160 160 160 160 129 129 170 170 146 50 50 Slowest Speed 360 | 160 160 160 160 160 360 330 170 170 250 50 70 Overloaded Moves . | . . . . . . . . . . . . Propulsion Burnouts . | . . . . . . . . . . . . Robots Hopped . | . . . . . . . . . . . . Potential Cave-ins . | . . . . . . . . . . . . Cave-ins Triggered 2 | . . . . . . 1 1 . . . . Exploration Rate (%) 39 | 5 83 83 58 17 70 39 12 15 8 82 4 Regions Visited 11 Branch Regions 3 Pre-discovered Areas . | . . . . . . . . . . . . Known Exits Taken 4 | . . . . . 1 1 1 1 . . . Unknown Exits Taken 5 | 1 1 1 1 1 . . . . . . . Scrap Searched 2 | . . 2 . . . . . . . . . Spaces Dug 84 | . . . . . 36 16 12 16 4 . . Terrain Destroyed 518 | . . 61 . . 261 53 12 40 91 . . Melee 56 | . . . . . 9 15 12 16 4 . . Projectile 18 | . . . . . 10 7 . 1 . . . AOE 444 | . . 61 . . 242 31 . 23 87 . . Terrain Rammed . | . . . . . . . . . . . . Walls Destroyed . | . . . . . . . . . . . . Machines Disabled . | . . . . . . . . . . . . Actions | -11 -10 -10 -10 -9 -8 -7 -6 -5 -4 -4 -4 --------- Run | Yrd Mat Min Exi Min Mat Fac Fac Fac Fac Was Fac Total 7407 | 54 668 563 196 71 1501 1924 830 751 608 129 112 Wait 1075 | . 48 13 . 4 237 250 254 190 74 1 4 Move 5537 | 43 557 510 196 59 1013 1506 503 476 442 128 104 Hop . | . . . . . . . . . . . . Pick Up 80 | 1 6 4 . 2 24 19 11 9 3 . 1 Fast Attach 32 | 6 1 1 . 1 7 10 1 2 2 . 1 Attach 38 | . 1 . . . 10 3 4 3 16 . 1 Detach . | . . . . . . . . . . . . Swap 151 | 1 4 4 . 2 48 41 21 17 13 . . Drop 90 | . 3 . . . 34 27 8 14 3 . 1 Fire 309 | 3 44 30 . 3 109 46 15 14 45 . . Melee 87 | . . . . . 18 21 12 26 10 . . Ram . | . . . . . . . . . . . . Kick . | . . . . . . . . . . . . Crush 8 | . 4 1 . . 1 1 1 . . . . Escape Stasis . | . . . . . . . . . . . . Rewire . | . . . . . . . . . . . . Trap . | . . . . . . . . . . . . Miscellaneous . | . . . . . . . . . . . . Route ------- -11/Scrapyard -10/Materials (discovered 4 exits: [*Mat x2] / [*Min x2]) -10/Mines (discovered 4 exits: [*Mat x2] / [*Exi] / [*Sub]) -10/Exiles (discovered 2 exits: *Min x2) -9/Mines -8/Materials (discovered 3 exits: *Fac x2 / [*Sto]) -7/Factory -6/Factory (discovered 5 exits: *Fac x4 / [*Low]) -5/Factory (discovered 6 exits: *Fac x4 / Upp x2) -4/Factory -4/Waste -4/Factory History --------- Turn | Location | Event 4 | -11/Scrapyard | Discovered new exit (range 14) 83 | -11/Scrapyard | Entered Materials 307 | -10/Materials | Build established: Mutant 313 | -10/Materials | Discovered new exit (range 14) 607 | -10/Materials | Discovered new exit (range 15) 783 | -10/Materials | Derelicts attacked the area 835 | -10/Materials | Discovered new exit (range 16) 1129 | -10/Materials | Discovered new exit (range 9) 1177 | -10/Materials | Entered Mines 1184 | -10/Mines | Received a Rocket Launcher from a helpful Derelict 1290 | -10/Mines | Found a damaged Exp. Sensor Array with a note attached 1293 | -10/Mines | Found Prototype Device 1293 | -10/Mines | Identified Exp. Sensor Array 1312 | -10/Mines | Discovered new exit (range 4) 1475 | -10/Mines | Learned Materials stockpile data 1620 | -10/Mines | Discovered new exit (range 15) 1837 | -10/Mines | Core integrity fell below 50% 2059 | -10/Mines | Discovered new exit (range 10) 2103 | -10/Mines | Deemed a non-threat by the Exiles lab entrance 2103 | -10/Mines | Discovered new exit (range 5) 2110 | -10/Mines | Entered Exiles 2138 | -10/Exiles | Discovered new exit (range 14) 2178 | -10/Exiles | Met 8R-AWN 2198 | -10/Exiles | Met EX-HEX 2243 | -10/Exiles | Met EX-BIN 2266 | -10/Exiles | Aligned with FarCom system 2267 | -10/Exiles | Given EX-Vault access code 2350 | -10/Exiles | Met EX-DEC 2403 | -10/Exiles | Discovered new exit (range 14) 2424 | -10/Exiles | Entered Mines 2467 | -9/Mines | Learned 8 Materials zone layouts 2496 | -9/Mines | Discovered new exit (range 13) 2497 | -9/Mines | Met a Derelict who couldn't figure out how to use a Trap Extractor 2538 | -9/Mines | Entered Materials 2538 | -8/Materials | Evolved 4 slots: Propulsion x2, Utility x2 2539 | -8/Materials | Identified exit to Factory 2701 | -8/Materials | Discovered new exit (range 3) 2999 | -8/Materials | Garrison activated, responded to threat 3019 | -8/Materials | Build established: Scavenger-Mutant 3058 | -8/Materials | Destroyed 10 combat bots 3114 | -8/Materials | Lost 5 parts (4n1w) 3340 | -8/Materials | Build established: Mutant 3367 | -8/Materials | Destroyed 8 combat bots 3375 | -8/Materials | Lost 3 parts (2u1w) 3398 | -8/Materials | Central database locked down 3549 | -8/Materials | Destroyed 7 combat bots 3738 | -8/Materials | First assault squad dispatched 3889 | -8/Materials | Destroyed 10 combat bots 4000 | -8/Materials | Repaired Hvy. Missile Launcher 4572 | -8/Materials | Entered Factory 4572 | -7/Factory | Evolved 2 slots: Utility x2 4847 | -7/Factory | Repaired Imp. Heat Sink 5280 | -7/Factory | Discovered new exit (range 8) 5290 | -7/Factory | Identified exit to Factory 5334 | -7/Factory | Found Powered Armor 5398 | -7/Factory | Crushed by falling debris 6639 | -7/Factory | Garrison activated, responded to threat 7060 | -7/Factory | Entered another Factory area 7060 | -6/Factory | Evolved 2 slots: Power x1, Weapon x1 7072 | -6/Factory | Discovered new exit (range 10) 7138 | -6/Factory | Identified exit to Factory 8096 | -6/Factory | Crushed by falling debris 8302 | -6/Factory | Entered another Factory area 8302 | -5/Factory | Evolved 2 slots: Propulsion x1, Utility x1 8456 | -5/Factory | Identified exit to Upper Caves 9171 | -5/Factory | Identified exit to Factory 9458 | -5/Factory | Entered another Factory area 9458 | -4/Factory | Evolved 2 slots: Power x1, Utility x1 10068 | -4/Factory | Destroyed 9 combat bots 10194 | -4/Factory | Cargo convoy interrupted 10234 | -4/Factory | Destroyed 10 combat bots 10283 | -4/Factory | System corruption reached 10% 10321 | -4/Factory | Core integrity fell below 50% 10321 | -4/Factory | Released all parts (5) 10336 | -4/Factory | Core integrity fell below 20% 10358 | -4/Factory | Lost 27 parts (5p8n7u7w) 10371 | -4/Factory | Sucked down chute 10371 | -4/Factory | Entered Waste 10376 | -4/Waste | Spotted C-40 Crusher 10383 | -4/Waste | Spotted C-40 Crusher 10384 | -4/Waste | Spotted C-40 Crusher 10386 | -4/Waste | EMP discharged 10391 | -4/Waste | Spotted C-40 Crusher 10392 | -4/Waste | Spotted C-40 Crusher 10404 | -4/Waste | Spotted C-40 Crusher 10430 | -4/Waste | Discovered new exit (range 14) 10437 | -4/Waste | Entered Factory 10497 | -4/Factory | Destroyed by Y-64 Sentinel with KE Penetrator Last Messages --------------- 10430_ EXIT=FOUND LOCATION=UNKNOWN GOAL=ESCAPE 10437_ Receiving FarCom transmissions... 10441_ System corrupted: Heat flow error (+286). 10444_ Acquired Imp. Gyrokinetic Inverter. 10446_ Dropped Imp. Gyrokinetic Inverter. 10447_ Acquired Imp. Gyrokinetic Inverter. 10457_ System corrupted: Energy discharge (-16). 10470_ Connecting with Terminal... 10470_ Current location identified: Factory 10474_ System corrupted: Component data lost. 10477_ Connecting with DSF Access... 10480_ K-01 Serf collects debris. 10481_ O-32 Director: "IFF HANDSHAKE FAILED. SECURING TERMINAL." 10483_ ALERT: All DSF locations entering lockdown mode. 10485_ ALERT: Hostiles spotted, dispatching reinforcements to Terminal F004. 10491_ System corrupted: Heat flow error (+185). 10495_ Penetrated by Slug. Map ----- +----------------------------------------------------+ | ???????????????????????# #???????????????? | | ???????????????????????# #???????????????? | | ???????????????????????# #???????????????? | | ???????????????????????# #???????????????? | | ????????????##########?# #??????????? ??? | | ????????????# [#########+############= ""? | | ????????????# # ? | | ????????????# "" # ? | | ????????????# "" # ? | | ????????????# """ + ? | | ????????????# """ # ? | | ????????????# """ # ###+############ #? | | ????????????# # # #????# # | | ????????????# ####### """ """ #????# # | | ????????????##########?????# """ """ #????# /? | | ???????????????????????????# """ """ #????# #? | | ???????????????????????????# #????# #? | | ???????????????????????????# #????# #? | | ???????????????????????????# = #????# # | | ???????????????????????????# #????# # | | ???????????????????????????####+######???## + | | ?????????????###+???????????### ###??????# # | | ?????????????# ########## #??????#T #] | | ?????????????# "" ######### #? | | ??????????# Y "T #? | | ?????????????# @ ###########+#### | | ?????????????# #######+## #?# | | ????????????????????# #######?# | | ????????????????????# #???????# | | ????????????????????# #???????# | | ????????????????????# #???????# | | ????????????????????# #???????# | | ????????????????????# #???????# ! | | ????????????????????########????????############## | | | | | | | | | | | | | | | | | | | | | | | | | | | | | | | | | +----------------------------------------------------+ Best States ------------- Heat Dissipation 90 Energy Generation 41 Energy Capacity 550 Matter Stores 300 Matter Capacity 300 Sight Range 16 Robot Scan Range 20 Terrain Scan Range 16 Terrain Scan Density 110 ECM Strength 2 Cloak Strength 2 Armor Coverage 675 Evasion (%) 57 Core Analysis 6 Recoil Reduction 5 Offensive Hacking 20 Defensive Hacking 10 Item Schematics ----------------- None Robot Schematics ------------------ None Fabricated ------------ Nothing Repaired ---------- Hvy. Missile Launcher | 35% | -8/Materials Imp. Heat Sink | 47% | -7/Factory Studied --------- Lgt. Nuclear Core | -8/Materials | Hacked Imp. Carbon-fiber Leg | -7/Factory | Hacked Alien Tech Used ----------------- None Achievements -------------- Live, Flee, And Rebuild Challenges ------------ None Game ------ Seed SurveybotChargeDeflector Manual? 0 Play Time 02:09:57 Cumulative 43.1 hours Start 2025.11.11 @ 11:32:23 End 2025.11.11 @ 13:45:04 Sessions 1 Manual Loads 0 Difficulty Rogue Special Mode None Game No. 60 Rogue 60 Adventurer 0 Explorer 0 Win Type - Total 0 Types 0/0/0/0/0/0/0/0/0/0 Lore% 9 Gallery% 21 Achievement% 17 Wizard Run 0 Options --------- Layout 0 ASCII 0 Keyboard 0 Movement Numpad Keybinds 0 Fullscreen 2 Font 24/Smallcaps Map View 76x50 Zoom Use 9% Tactical HUD 1 Map Filters NONE Filters NONE Steam 1 RUN: 083480b9-a313-4ceb-8a2c-be15191c85a1